Cogmind - Beta 16 X1 @@@ ROGUE MODE // 2025.10.10 @ 11:53:12 Player: cingulata Result: Destroyed by S-43 Plague with Heavy Machine Gun Performance ------------- Evolutions (9) 4500 Regions Visited (24) 4800 Robots Destroyed (332) 1660 Value Destroyed (14038) 14038 Prototype IDs (58) 1160 Alien Tech Used (5) 1000 Bonus (8858) 8858 TOTAL SCORE: 36016 Bonus ------- High Alert Combat Kills 1407 Follower Combat Kills 2413 Awakened Behemoth Slayer 1000 Network Hubs Disabled 200 Met Imprinter 300 Was Imprinted 300 Destroyed Z-Imprinter 1000 Met Zhirov 300 Built Enhanced Grunts 300 Met R17 at Cetus 500 Found Hidden Lab 3000 Scanned by Researcher 500 Friendly Fire -2362 Cogmind --------- Core Integrity 0/1600 Matter 270/300 Energy 12/100 System Corruption 3% Temperature Cool (0) Movement Rolling (130) Ox2 Location -1/Access Parts ------- > --- POWER (3) -------- (None) > --- PROPULSION (8) --- Compact Wheel > --- UTILITY (11) ----- Medium Storage Unit Machine Analyzer Enhanced Optical Array Advanced Signal Interpreter Advanced Signal Interpreter Seismic Detector Advanced Targeting Computer High-powered Tractor Beam > --- WEAPON (4) ------- Enhanced Nova Cannon Core Cannon > --- INVENTORY (10) --- Compact Wheel Experimental Matter Compressor (2) Peak State ------------ > --- POWER ------------ Compact Particle Reactor Quantum Reactor Quantum Reactor > --- PROPULSION ------- Improved Thunder Leg Centrium Leg Centrium Leg Centrium Leg Heavy Shield Leg > --- UTILITY ---------- Large Storage Unit Improved Targeting Computer Advanced Target Analyzer Core Analyzer Advanced Transmission Jammer Advanced Reaction Control System Experimental Powered Armor Advanced Remote Force Field Quantum Router > --- WEAPON ----------- Hypervelocity Railgun Hypervelocity Railgun Hypervelocity Railgun Enhanced Hardcell Cannon > --- INVENTORY -------- Particle Reactor Centrium Leg Advanced Cooling System Experimental Matter Compressor Surveybot 24 Chip Improved Transmission Jammer Improved Medium Armor Plating Long-range Tractor Beam Assault Drone Bay Assault Drone Bay Heavy Proton Missile Launcher Tiamat Missile Launcher CR-A16's Behemoth Slayer [Rating: 180] Favorites ----------- Power Quantum Reactor Engine Improved Ion Engine Power Core Light Nuclear Core Reactor Quantum Reactor Propulsion Light Treads Treads Light Treads Leg Carbon-fiber Leg Wheel Compact Wheel Hover Unit Improved Antigrav System Flight Unit Impulse Thruster Utility Large Storage Unit Device Seismic Detector Storage Large Storage Unit Processor Core Analyzer Hackware Quantum Router Protection Centrium Medium Armor Plating Weapon Compact Mass Driver Energy Gun Spread Laser Energy Cannon Enhanced Nova Cannon Ballistic Gun Hypervelocity Railgun Ballistic Cannon Compact Mass Driver Launcher EMP Blaster Special Weapon RU-N14's Throwing Claymores Slashing Weapon Katana Piercing Weapon CR-A16's Pointy Stick Special Melee Weapon Advanced Datajack Build | -11 -10 -10 -9 -9 -7 -7 -6 -6 -6 -6 -6 -6 -5 -5 -5 -5 -4 -4 -4 -4 -3 -2 -2 -1 ------- Run | Yrd Mat Min Mat Min Zio Dee Pro Fac Ext Cet Arc Hub Fac Upp Upp Zhi Pro Fac Arm Lab Res Res Qua Acc Slots Evolved 18 | . . . 2 . . . . 6 . . . . 2 . . . . 2 . . 2 2 . 2 Power 2 | . . . . . . . . 1 . . . . . . . . . . . . 1 . . . Propulsion 6 | . . . 1 . . . . 2 . . . . 1 . . . . . . . . 2 . . Utility 9 | . . . 1 . . . . 2 . . . . 1 . . . . 2 . . 1 . . 2 Weapon 1 | . . . . . . . . 1 . . . . . . . . . . . . . . . . Parts Attached 326 | 2 19 4 31 . 4 19 1 30 8 9 8 5 3 1 1 3 2 9 56 3 26 14 41 27 Power 37 | . . 1 4 . . 3 . 3 2 1 . . . . . 1 . . 9 . 3 . 8 2 Engine 10 | . . . 4 . . 1 . 2 1 . . . . . . . . . . . . . 2 . Core 4 | . . 1 . . . . . . . . . . . . . . . . 2 . . . 1 . Reactor 23 | . . . . . . 2 . 1 1 1 . . . . . 1 . . 7 . 3 . 5 2 Propulsion 91 | . 4 . 6 . . 4 . 6 3 3 1 3 1 . . 1 1 3 17 . 9 7 13 9 Treads 13 | . 2 . 6 . . . . . . . . . . . . . . . 2 . . 2 1 . Leg 43 | . 1 . . . . 3 . 5 3 3 1 3 1 . . . . 1 15 . 2 2 3 . Wheel 14 | . 1 . . . . . . 1 . . . . . . . . 1 2 . . . . 5 4 Hover 14 | . . . . . . 1 . . . . . . . . . . . . . . 3 2 4 4 Flight 7 | . . . . . . . . . . . . . . . . 1 . . . . 4 1 . 1 Utility 111 | 1 6 1 10 . 1 8 1 13 2 3 4 1 2 . 1 1 . 5 15 1 8 3 11 13 Device 51 | 1 1 1 5 . 1 2 . 9 . 1 2 . . . . . . 3 6 . 4 1 5 9 Storage 8 | . 2 . 1 . . 1 . 1 . . 1 . . . . . . . . . . . 1 1 Processor 19 | . . . . . . . . . . . . 1 1 . 1 . . 1 3 . 3 2 4 3 Hackware 5 | . . . . . . . . . . . . . . . . . . 1 3 . 1 . . . Protection 28 | . 3 . 4 . . 5 1 3 2 2 1 . 1 . . 1 . . 3 1 . . 1 . Artifact . | . . . . . . . . . . . . . . . . . . . . . . . . . Weapon 87 | 1 9 2 11 . 3 4 . 8 1 2 3 1 . 1 . . 1 1 15 2 6 4 9 3 Energy Gun 16 | 1 2 2 2 . 1 2 . 3 . . . . . . . . . 1 1 . . . 1 . Energy Cannon 10 | . 1 . 2 . . . . 1 . . . 1 . . . . . . . . . . 3 2 Ballistic Gun 20 | . 1 . 1 . . . . . . 1 2 . . 1 . . . . 9 . 3 1 1 . Ballistic Cannon 18 | . 4 . 3 . . . . 2 1 . . . . . . . . . 3 1 1 2 1 . Launcher 10 | . 1 . 2 . . . . 1 . . . . . . . . 1 . 2 . 2 1 . . Special Weapon 4 | . . . . . 1 2 . . . . . . . . . . . . . 1 . . . . Impact Weapon . | . . . . . . . . . . . . . . . . . . . . . . . . . Slashing Weapon 3 | . . . 1 . . . . . . . . . . . . . . . . . . . 2 . Piercing Weapon 4 | . . . . . 1 . . 1 . 1 . . . . . . . . . . . . . 1 Special Melee Weapon 2 | . . . . . . . . . . . 1 . . . . . . . . . . . 1 . Unidentified Prototypes 45 | . . . 2 . 1 10 . 9 . 2 1 1 . 1 . 4 . 1 3 3 2 1 4 . Corrupted Parts 4 | . . . . . . . . . . 2 2 . . . . . . . . . . . . . System Corruption 21 | . . . . . . . . . . 11 10 . . . . . . . . . . . . . Parts Lost 102 | . . 1 2 . . 1 3 2 3 . . . . . . . 2 2 17 . 24 9 15 21 Power 14 | . . 1 1 . . . . . 1 . . . . . . . . . 4 . 2 . 2 3 Propulsion 43 | . . . . . . . . 1 1 . . . . . . . 1 1 4 . 11 7 8 9 Utility 33 | . . . 1 . . 1 3 1 1 . . . . . . . 1 1 7 . 6 2 1 8 Weapon 12 | . . . . . . . . . . . . . . . . . . . 2 . 5 . 4 1 Highest Loss Streak 16 | . . 1 2 . . 1 2 1 2 . . . . . . . 2 2 6 . 16 3 11 7 To Critical Strikes 5 | . . . . . . . . 1 1 . . . . . . . . . . . 2 . 1 . Average Backups 13 | 6 11 14 14 15 14 14 12 13 14 14 14 15 14 15 14 14 14 14 13 11 12 4 4 3 Power . | 1 . . . . . . 1 1 . 1 1 1 1 2 2 1 1 1 1 . . . . . Propulsion 1 | 4 2 1 2 5 4 2 2 1 . . . 2 . . . . . . 1 . . . . . Utility 4 | . 3 6 5 5 4 5 5 5 7 5 5 4 4 5 5 6 6 5 3 6 6 2 2 1 Weapon 5 | 1 4 6 6 5 5 5 4 5 6 7 8 7 7 8 7 6 6 6 6 4 4 2 1 1 Tool/Special . | . . . . . . . . . . . . . . . . . . . . . . . . . Unused Backups 48 | 1 4 2 12 . 3 3 . 6 2 2 1 . . . 1 1 . . 7 . 1 1 1 . Power 6 | . . . 2 . . 1 . 1 . 1 . . . . . 1 . . . . . . . . Propulsion 12 | 1 . 1 2 . 1 . . 2 1 . . . . . . . . . 4 . . . . . Utility 18 | . 2 . 5 . . 1 . 3 1 1 1 . . . . . . . 2 . . 1 1 . Weapon 12 | . 2 1 3 . 2 1 . . . . . . . . 1 . . . 1 . 1 . . . Tool/Special . | . . . . . . . . . . . . . . . . . . . . . . . . . Average Slot Usage (%) 91 | . 99 99 99 100 99 93 98 95 98 98 95 100 99 100 99 83 95 87 88 94 86 36 53 50 Engine 4 | . 14 5 9 11 11 4 . 6 4 1 . . . . . . . . . . . . 2 . Reactor 5 | . . . . . . 6 11 6 7 11 13 13 11 11 11 10 11 10 7 10 11 . 4 3 Treads 9 | . 7 28 26 33 33 16 . . . . . . . . . . . . 3 1 . 1 1 . Leg 17 | . 17 . . . . 16 33 32 32 33 33 33 34 35 35 35 28 11 18 23 20 2 5 . Wheel 1 | . 2 . 6 . . . . . . . . . . . . . 2 9 2 . . . 2 2 Device 9 | . 4 12 7 11 11 4 9 16 12 18 17 13 8 10 5 5 2 5 7 14 12 6 11 11 Storage 7 | . 14 14 11 11 11 11 11 6 6 6 6 6 5 5 5 5 5 5 6 5 3 . . . Processor 6 | . . . . . . . . . . . . 2 6 11 16 17 17 14 19 15 12 12 13 19 Protection 7 | . 9 1 14 11 11 11 11 4 13 7 6 10 11 5 5 4 7 10 4 5 4 . . . Energy Gun 4 | . 7 21 6 11 8 3 20 11 7 4 . . . . . . . . . . . . . . Ballistic Gun 4 | . 4 . . 11 6 . . . . 1 2 5 7 5 5 . 10 8 12 14 12 . 1 . Ballistic Cannon 5 | . 12 5 12 . . . . 2 10 5 12 12 7 11 11 . 4 6 2 2 2 2 1 . Piercing Weapon 1 | . . . . . 5 8 . 3 1 3 1 . 1 . . . . . . 2 . . . . Peak Build Rating 180 | 7 12 14 18 17 26 54 55 93 91 107 107 106 114 109 105 102 104 118 145 159 180 81 143 118 Average Rating 70 | 6 8 12 15 16 19 41 51 74 84 95 99 102 109 105 101 77 100 115 118 151 158 55 79 70 On Entrance 70 | 6 7 12 13 17 16 26 47 55 88 88 103 106 98 103 105 102 102 104 112 139 154 30 34 102 Avg Prop Armor Cover (%) 2 | . 1 . 6 . . . . . . . . . . . . . 5 6 7 2 2 20 10 2 Naked Turns . | . . . . . . . . . . . . . . . . . . . . . . . . . Heaviest Build 144 | 14 38 37 46 41 47 55 51 66 70 81 85 85 91 85 78 84 90 93 111 124 144 15 92 38 Greatest Support 180 | 20 40 40 60 60 60 65 65 99 90 90 90 90 100 100 100 100 100 56 165 180 180 56 113 48 Greatest Overweight (x) 5 | . 2 . 2 . . 1 . . . 1 . . 1 . . . 5 3 2 . 4 2 5 4 Average Overweight (x) . | . . . . . . . . . . . . . . . . . 1 1 . . . . . . Largest Inventory Capacity 25 | 8 15 15 15 15 15 15 15 15 15 15 15 15 15 15 15 15 15 15 15 15 15 5 25 10 Average Capacity 13 | 8 11 15 15 15 15 15 15 15 15 15 15 15 15 15 15 15 15 15 15 15 14 5 5 5 Most Carried 15 | 8 15 15 15 15 15 15 14 15 15 15 15 15 15 15 15 15 15 15 15 15 15 5 5 5 Average Carried 13 | 6 11 14 14 15 14 14 13 13 14 14 14 14 14 14 14 14 14 14 14 14 13 4 4 4 Final Capacity 15 | 8 15 15 15 15 15 15 15 15 15 15 15 15 15 15 15 15 15 15 15 15 15 5 5 10 Final Carried 15 | 8 15 15 15 15 15 14 11 15 15 15 15 15 15 15 15 15 15 15 15 14 14 5 5 5 Class Distribution -------------------- 27% | Scavenger-Mutant 26% | Mutant 21% | Scavenger-Gunner 10% | Scavenger-Tank Dominant Class ---------------- Mutant | -10/Materials Mutant | -10/Mines Mutant | -9/Materials Scavenger-Mutant | -9/Mines Scavenger-Mutant | -7/Zion Mutant | -7/Deep Caves Mutant | -6/Proximity Caves Scavenger-Mutant | -6/Factory Scavenger-Tank | -6/Extension Scavenger-Mutant | -6/Cetus Scavenger-Mutant | -6/Archives Scavenger-Tank | -6/Hub_04(d) Scavenger-Tank | -5/Factory Scavenger-Gunner | -5/Upper Caves Scavenger-Gunner | -5/Upper Caves Scavenger-Mutant | -5/Zhirov Scavenger-Gunner | -4/Proximity Caves Scavenger-Gunner | -4/Factory Scavenger-Gunner | -4/Armory Scavenger-Gunner | -4/Lab Scavenger-Gunner | -3/Research Mutant | -2/Research Skirmisher | -2/Quarantine Infiltrator-Scout | -1/Access Resources | -11 -10 -10 -9 -9 -7 -7 -6 -6 -6 -6 -6 -6 -5 -5 -5 -5 -4 -4 -4 -4 -3 -2 -2 -1 ----------- Run | Yrd Mat Min Mat Min Zio Dee Pro Fac Ext Cet Arc Hub Fac Upp Upp Zhi Pro Fac Arm Lab Res Res Qua Acc Matter Collected 15267 | 220 456 96 1201 . 82 406 82 852 1138 238 339 705 703 369 51 130 362 332 3160 300 2241 511 725 568 Remotely 1011 | . . . 66 . . . . . . . . . . . . . . 4 376 . 565 . . . Salvage Created 15063 | 171 520 146 1353 . . 318 77 903 625 432 570 623 779 127 33 205 395 685 3256 . 2586 216 647 396 Parts 780 | 15 29 11 93 . . 19 9 49 27 21 31 21 43 . 1 4 22 38 161 . 133 13 25 15 Haulers Intercepted 9 | . . . 5 . . . . 1 . . . . 2 . . . . 1 . . . . . . Recyclers Shooed 10 | 1 1 1 1 . . . . 5 1 . . . . . . . . . . . . . . . Parts Field Recycled . | . . . . . . . . . . . . . . . . . . . . . . . . . Retrieved Matter . | . . . . . . . . . . . . . . . . . . . . . . . . . Parts Self-Destructed 32 | . . . . . . . 6 . . . . . . 3 1 2 20 . . . . . . . Prevented 5 | . . . . . . . . . . . . . . 5 . . . . . . . . . . Parts Restored . | . . . . . . . . . . . . . . . . . . . . . . . . . Kills | -11 -10 -10 -9 -9 -7 -7 -6 -6 -6 -6 -6 -6 -5 -5 -5 -5 -4 -4 -4 -4 -3 -2 -2 -1 ------- Run | Yrd Mat Min Mat Min Zio Dee Pro Fac Ext Cet Arc Hub Fac Upp Upp Zhi Pro Fac Arm Lab Res Res Qua Acc Combat Hostiles Destroyed 229 | . 15 8 30 . . 9 7 12 15 4 3 7 11 1 . . 12 9 48 . 24 4 9 1 Melee 4 | . . . . . . 3 . . . . . . . . . . . . . . . . . 1 Guns 94 | . 9 4 4 . . . . 6 5 . 1 1 1 . . . 2 2 38 . 19 2 . . Cannons 69 | . 6 3 14 . . . . 1 10 . 2 6 8 1 . . 2 3 6 . 2 . 5 . AOE 53 | . . 1 12 . . 6 7 5 . . . . 2 . . . 7 4 3 . 1 2 3 . Classes Destroyed 22 | 2 3 1 3 . . 1 . 4 1 . . 1 1 . 1 . 1 . 2 . . . 1 . Worker 24 | . . 1 6 . . . . 3 1 . . 2 1 . . . . . . . 4 . 1 5 Builder 15 | . . . 2 . . . . 2 1 . . 2 1 . . . . 3 . . 2 . 2 . Tunneler 5 | 4 . . . . . . . . . . . . 1 . . . . . . . . . . . Hauler 9 | . . . 5 . . . . 1 . . . . 2 . . . . 1 . . . . . . Recycler 17 | 1 1 . 4 . . . . 2 . . . 2 . . . . . 1 . . 4 . 1 1 Minesweeper 1 | . . . . . . . . . . . . . . . 1 . . . . . . . . . Mechanic 2 | . . . . . . . . . . . . . . . . . . . 1 . . . . 1 Operator 11 | . . . . . . . . . 1 . 8 1 . . . . . . . . . . 1 . Watcher 15 | . 2 . 2 . . . . . . 2 . 1 2 . . . . 2 2 . 2 . . . Swarmer 47 | . 6 6 11 . . . 7 . 4 . . . . . . . 6 4 3 . . . . . Grunt 78 | . 9 2 10 . . . . 3 5 . . 5 3 1 . . 3 1 24 . 10 1 . 1 Brawler 4 | . . . . . . . . . . . . 2 . . . . 1 . 1 . . . . . Duelist 4 | . . . . . . . . . . . . . 1 . . . . . 3 . . . . . Protector 3 | . . . . . . . . 1 . . . . . . . . . . 2 . . . . . Researcher 1 | . . . . . . . . . . . . . . . . . . . . . . . 1 . Sentry 33 | . . . 9 . . . . 2 6 . 3 . 2 . . . 1 4 2 . 4 . . . Specialist 1 | . . . . . . . . 1 . . . . . . . . . . . . . . . . Hunter 11 | . . . . . . . . 2 . . . . 1 . . . . . 2 . . . 6 . Programmer 31 | . . . . . . . . 3 . . . . 4 . . . . . 9 . 9 3 3 . Heavy 1 | . . . . . . . . . . . . . . . . . . . 1 . . . . . Behemoth 3 | . . . . . . . . . . . . . . . . . 1 . 1 . 1 . . . Cetus Guard 4 | . . . . . . . . . . 4 . . . . . . . . . . . . . . Enhanced Grunt 1 | . . . . . . . . . . . 1 . . . . . . . . . . . . . Z-Light 8 | . . . . . . 8 . . . . . . . . . . . . . . . . . . Packrat 2 | . . . . . . . . . . . . . . 2 . . . . . . . . . . Guerrilla 1 | . . . . . . . . . . . . 1 . . . . . . . . . . . . Best Kill Streak 11 | 2 3 3 11 . . 6 4 9 4 4 4 4 5 1 1 . 4 5 11 . 10 2 6 2 Combat Bots Only 11 | . 3 3 5 . . 6 4 5 4 3 2 2 3 1 . . 4 4 11 . 6 2 3 1 Max Kills in Single Turn 4 | 1 1 1 4 . . 3 4 4 1 1 1 4 2 1 1 . 2 2 2 . 2 2 3 1 Gunslinging 1 | . . . . . . . . . . . . . . . . . . . 1 . 1 . . . Exploded 4 | . . 1 4 . . 3 4 4 . . . . 1 . . . 2 2 1 . 1 2 1 . Melee 1 | . . . . . . 1 . . . . . . . . . . . . . . . . . 1 Uniques/NPCs Destroyed 2 | . . . . . . 1 . . . 1 . . . . . . . . . . . . . . Z-Imprinter (-7/Deep Caves) A7 (-6/Cetus) Combat | -11 -10 -10 -9 -9 -7 -7 -6 -6 -6 -6 -6 -6 -5 -5 -5 -5 -4 -4 -4 -4 -3 -2 -2 -1 -------- Run | Yrd Mat Min Mat Min Zio Dee Pro Fac Ext Cet Arc Hub Fac Upp Upp Zhi Pro Fac Arm Lab Res Res Qua Acc Hostile Shots Fired 2293 | . 43 23 119 . . 28 64 135 144 18 8 76 47 3 . . 41 55 273 . 651 113 195 257 Missed 835 | . 15 1 29 . . 6 30 61 63 10 4 30 11 . . . 13 14 74 . 262 49 60 103 Deflected 6 | . . . . . . . . . . . . . . . . . . . . . 3 . 3 . Hits 1458 | . 28 22 90 . . 22 34 74 81 8 4 46 36 3 . . 28 41 199 . 389 64 135 154 Melee 8 | . . . . . . . . . . . . . . . . . . . 7 . 1 . . . Projectile 1450 | . 28 22 90 . . 22 34 74 81 8 4 46 36 3 . . 28 41 192 . 388 64 135 154 AOE 3 | . . . . . . . . . . . . . . . . . . . . . 1 . . 2 Critical Strikes 66 | . . . 2 . . . 2 4 3 1 1 . 3 . . . . 1 13 . 26 3 3 4 Actively Blocked 1 | . . . . . . . . . 1 . . . . . . . . . . . . . . . Part Disruptions 3 | . . . . . . . . . . . . . 1 . . . . . . . 2 . . . Damage Taken 26759 | . 292 198 1153 . . 662 571 1194 854 135 64 618 738 55 . . 566 901 4207 . 7033 1491 2475 3552 Core 4130 | . 46 11 182 . . . 72 88 61 26 14 159 21 . . . 29 17 361 . 987 226 223 1607 Absorbed by Shields 1832 | . . . 9 . . . . . 325 100 67 . . . . . . . 321 . 610 . 400 . Reduced by Siege Mode 39 | . . . . . . . . . . . . . . . . . . . 39 . . . . . Redirected to Shielding 44 | . . . . . . . . 14 19 5 . . . . . . . . 6 . . . . . Ignored by Resistances 207 | . . . . . . . . . . . . . . . . . . . 207 . . . . . Regen/Repaired (Parts) 234 | . . . 62 . . . . 98 . . . . . . . . . . . . . . . 74 Core Remaining (%) 64 | 100 . 77 . . . . 36 . . . . 59 . . . . 95 . . 62 16 . 69 . Volleys Fired 679 | 17 53 13 82 4 . 8 3 43 29 10 6 39 32 7 11 . 12 21 109 2 76 24 55 23 Largest 4 | 2 2 2 2 1 . 2 2 3 3 1 3 3 3 3 1 . 3 3 3 1 4 1 2 1 Hottest 240 | 90 90 130 133 65 . . 60 230 188 33 143 143 143 143 33 . 132 141 162 58 193 46 240 120 Shots Fired 1432 | 34 101 24 147 4 . 9 5 82 82 11 18 95 68 21 10 . 29 59 294 3 226 24 63 23 Gun 768 | 34 49 16 40 4 . . 2 49 30 . 6 26 21 7 10 . 16 29 223 2 182 16 6 . Cannon 566 | . 52 6 91 . . . . 20 52 1 12 64 41 14 . . 8 28 66 1 39 . 48 23 Launcher 87 | . . 2 16 . . . 1 13 . 10 . 5 6 . . . 5 2 5 . 5 8 9 . Special 11 | . . . . . . 9 2 . . . . . . . . . . . . . . . . . Kinetic 1089 | . 60 6 92 . . . . 18 52 1 18 90 62 21 10 . 24 57 286 3 221 16 36 16 Thermal 226 | 34 39 16 37 4 . . . 38 30 . . . . . . . . . 3 . . . 18 7 Explosive 59 | . . . 10 . . 9 3 3 . . . 1 2 . . . 5 2 5 . 2 8 9 . Electromagnetic 43 | . 2 2 8 . . . . 10 . 10 . 4 4 . . . . . . . 3 . . . Phasic 15 | . . . . . . . 2 13 . . . . . . . . . . . . . . . . Robot Hit Streak 22 | 5 13 10 16 7 . 3 1 20 11 12 6 9 6 4 4 . 8 13 22 . 11 6 8 4 Robot Miss Streak 9 | 5 5 5 9 3 . 2 1 4 6 1 2 4 3 2 1 . 2 2 5 . 3 1 3 1 Penetration Max 2 | . . . . . . . . . . . . 1 1 . . . . 1 1 . 2 . . . Secondary Targets 14 | . . . . . . . . 1 1 . . . . . . . . . 8 . 4 . . . Max Gunslinging Chain 2 | . . . . . . . . 1 1 . . . . . . . . . 1 . 2 . . . Shots Hit Robots 932 | 19 59 21 89 4 . 11 1 59 62 13 37 41 39 13 7 6 19 33 203 . 135 16 31 14 Core Hits 647 | 6 23 25 94 3 . 20 8 55 42 18 15 33 28 4 2 2 17 29 100 . 81 12 24 6 Critical Kills 61 | . . . . . . . . . . . 1 2 . . . . . 2 36 . 19 . 1 . Critical Parts Destroyed 73 | . . . . . . . . . . . . 4 . 1 1 . 2 2 37 . 26 . . . Critical Strikes 176 | . 2 1 . . . 2 . 6 3 1 5 10 3 2 1 . 3 4 79 . 53 . 1 . Burn 2 | . 1 . . . . . . 1 . . . . . . . . . . . . . . . . Meltdown 1 | . . . . . . . . . . . . . . . . . . . . . . . 1 . Destroy 144 | . . . . . . . . . . . 1 8 1 1 1 . 2 4 77 . 49 . . . Blast 17 | . 1 1 . . . . . 3 2 . . 2 2 1 . . 1 . 2 . 2 . . . Sever 1 | . . . . . . 1 . . . . . . . . . . . . . . . . . . Impale 9 | . . . . . . 1 . . 1 1 4 . . . . . . . . . 2 . . . Intensify 2 | . . . . . . . . 2 . . . . . . . . . . . . . . . . Melee Attacks 148 | . . . 11 . 1 10 . 20 13 8 27 . 6 . . 6 1 4 1 18 3 . 1 18 Impact . | . . . . . . . . . . . . . . . . . . . . . . . . . Slashing 25 | . . . 11 . 1 . . . . . . . . . . . . . . . . . 1 12 Piercing 119 | . . . . . . 10 . 20 13 8 23 . 6 . . 6 1 4 1 18 3 . . 6 Sneak Attacks 39 | . . . . . . . . 2 1 8 19 . 3 . . . . . . . 1 . . 5 Combat Hostiles . | . . . . . . . . . . . . . . . . . . . . . . . . . Follow-up Attacks . | . . . . . . . . . . . . . . . . . . . . . . . . . Damage Inflicted 35091 | 221 948 401 2619 58 . 1631 604 2755 1954 1250 1741 2920 1904 443 159 390 1440 1638 3878 . 3209 1202 2453 1273 Guns 8905 | 221 340 178 474 58 . . 33 1064 583 . 52 571 336 132 159 . 310 646 1435 . 2017 296 . . Cannons 11062 | . 606 137 1081 . . . . 517 1009 56 344 1409 1006 311 . . 244 689 1799 . 525 . 1075 254 Explosions 10495 | . . 86 1059 . . 1201 537 991 . 775 . 862 340 . . . 875 303 644 . 538 906 1378 . Melee 4135 | . . . . . . 219 . 183 273 419 1345 . 222 . . 390 . . . . 106 . . 978 Ramming 249 | . 2 . 5 . . . . . 89 . . 78 . . . . 11 . . . 23 . . 41 Kinetic 16410 | . 583 137 1098 . . . . 517 1009 56 396 1980 1342 443 159 . 554 1335 3180 . 2542 296 656 127 Thermal 3546 | 221 363 178 529 58 . . . 668 583 206 . 140 . . . . . . 54 . . . 419 127 Explosive 7256 | . . . 661 . . 1201 537 542 . . . . 209 . . . 875 303 644 . . 906 1378 . Electromagnetic 2821 | . . 86 326 . . . . 449 . 569 . 722 131 . . . . . . . 538 . . . Impact . | . . . . . . . . . . . . . . . . . . . . . . . . . Slashing 1050 | . . . . . . 211 34 . . . . . . . . . . . . . . . . 805 Piercing 3330 | . . . . . . 219 . 183 273 419 1345 . 222 . . 390 . . . . 106 . . 173 Phasic 429 | . . . . . . . 33 396 . . . . . . . . . . . . . . . . Highest Corruption 25 | . . . . . . . . 2 . 11 11 9 7 7 7 7 7 1 10 10 25 3 5 3 Average Corruption 6 | . . . . . . . . 1 . 7 7 8 5 7 7 7 7 1 5 10 5 2 3 2 Corruption Purged 18 | . . . . . . . . 2 . . 13 . . . . . . . . . . . 3 . Corruption Blocked . | . . . . . . . . . . . . . . . . . . . . . . . . . Effects 214 | . . . . . . . . 2 . 7 15 29 9 17 12 7 22 . 40 23 15 1 7 8 Message Errors 54 | . . . . . . . . . . 3 3 7 1 5 2 1 7 . 11 11 1 1 1 . Matter Fused 44 | . . . . . . . . . . . 4 7 1 6 4 2 3 . 7 4 2 . 2 2 Heat Flow Errors 29 | . . . . . . . . . . . 2 8 4 2 2 1 3 . 4 2 1 . . . Energy Discharges 29 | . . . . . . . . . . 2 2 2 2 1 3 2 3 . 6 2 2 . 1 1 Parts Rejected 2 | . . . . . . . . . . . . . . . . . . . . . . . 1 1 Parts Fused 2 | . . . . . . . . . . . . . 1 . . . 1 . . . . . . . Data Loss (minor) 21 | . . . . . . . . 1 . . 2 1 . 2 . . 1 . 4 3 4 . 1 2 Data Loss (major) 10 | . . . . . . . . 1 . 1 . 1 . . . 1 1 . 1 . 2 . . 2 Misfires 6 | . . . . . . . . . . 1 . 1 . . . . 2 . 1 1 . . . . Alerts 8 | . . . . . . . . . . . 1 . . 1 . . . . 3 . 2 . 1 . Misdirections 2 | . . . . . . . . . . . 1 . . . . . . . . . 1 . . . Weapon Failures 7 | . . . . . . . . . . . . 2 . . 1 . 1 . 3 . . . . . Overload Shots . | . . . . . . . . . . . . . . . . . . . . . . . . . Overflow Damage 2065 | . . 2 12 . . 45 39 92 182 22 445 51 193 37 . 171 3 52 203 . 7 26 96 387 Projectiles 556 | . . . 4 . . . 9 92 47 . . 34 99 37 . . . 19 195 . . . 1 19 Explosions 274 | . . 2 8 . . 45 30 . . . . 17 . . . . 3 33 8 . 7 26 95 . Melee 1235 | . . . . . . . . . 135 22 445 . 94 . . 171 . . . . . . . 368 Knockbacks 86 | . 9 2 11 . . . . 5 6 1 . 5 6 2 . . 1 3 22 . 4 . 6 3 Impact 2 | . . . 1 . . . . . . . . . . . . . . . . . . . . 1 Kinetic 81 | . 8 2 10 . . . . 5 6 1 . 5 6 2 . . 1 3 22 . 4 . 4 2 Secondary 3 | . 1 . . . . . . . . . . . . . . . . . . . . . 2 . Self-Inflicted Damage 241 | . . 23 9 . . . . 4 . . . 162 . . . . . . 23 . . . . 20 Shots 9 | . . 2 2 . . . . 1 . . . 3 . . . . . . 1 . . . . . Rammed 2 | . . . 1 . . . . . . . . . . . . . . . . . . . . 1 Targets Rammed 22 | . 1 . 1 . . . . . 7 . . 7 . . . . 1 . . . 4 . . 1 Kicked 20 | . 1 . . . . . . . 7 . . 7 . . . . 1 . . . 4 . . . Crushed . | . . . . . . . . . . . . . . . . . . . . . . . . . Highest Temperature 366 | 210 240 182 310 104 . 8 72 270 277 3 179 331 249 366 179 101 243 . 222 104 140 . . . Average Temperature 74 | 90 72 71 75 52 . 8 24 62 96 3 44 60 70 126 112 53 55 . 93 70 36 . . . Received Heat Transfer 2994 | . 123 24 432 . . 198 72 243 181 6 4 135 99 27 . . 75 75 558 . 472 171 9 90 Effects 7 | . . . 3 . . . . . . . . . . 4 . . . . . . . . . . Shutdowns 1 | . . . . . . . . . . . . . . 1 . . . . . . . . . . Interference 6 | . . . 3 . . . . . . . . . . 3 . . . . . . . . . . Siege Activations 1 | . . . . . . . . . . . . . . . . . . . 1 . . . . . Total Turns 32 | . . . . . . . . . . . . . . . . . . . 32 . . . . . Longest Duration 32 | . . . . . . . . . . . . . . . . . . . 32 . . . . . Martial Activations . | . . . . . . . . . . . . . . . . . . . . . . . . . Shielding Activations 7 | . . . . . . . . . . . . . . . . . . . . . 6 . 1 . Total Turns 83 | . . . . . . . . . . . . . . . . . . . . . 64 . 19 . Longest Duration 20 | . . . . . . . . . . . . . . . . . . . . . 20 . 19 . Robots Disrupted 1 | . . . . . . . . . . . . . . . . . . . . . 1 . . . Combat Hostiles 1 | . . . . . . . . . . . . . . . . . . . . . 1 . . . Robots Corrupted 7 | . . . . . . . . 1 1 4 . . . . . . . . . . 1 . . . Combat Hostiles 5 | . . . . . . . . . . 4 . . . . . . . . . . 1 . . . Parts Fried 9 | . . . . . . . . 1 3 1 . 2 . . . . . . . . 2 . . . Impact Corruptions 1 | . . . . . . . . . 1 . . . . . . . . . . . . . . . Robots Melted 1 | . . . . . . . . . . . . . . . . . . . . . . . 1 . Combat Hostiles 1 | . . . . . . . . . . . . . . . . . . . . . . . 1 . Parts Melted 10 | 1 . . . . . . . 3 4 . . . . . . . . . . . 1 . 1 . Heat Transferred 5995 | 595 999 225 630 75 . . . 1316 1300 150 . 150 . . . . . . 74 . . . 370 111 Parts Sabotaged 2 | . . . . . . . . . . . . . . . . . . . . . 2 . . . Parts Stolen . | . . . . . . . . . . . . . . . . . . . . . . . . . Parts Stripped . | . . . . . . . . . . . . . . . . . . . . . . . . . Power Chain Reactions 5 | . . . 2 . . . . . . 2 . 1 . . . . . . . . . . . . Alert | -11 -10 -10 -9 -9 -7 -7 -6 -6 -6 -6 -6 -6 -5 -5 -5 -5 -4 -4 -4 -4 -3 -2 -2 -1 ------- Run | Yrd Mat Min Mat Min Zio Dee Pro Fac Ext Cet Arc Hub Fac Upp Upp Zhi Pro Fac Arm Lab Res Res Qua Acc Maximum Alert Level 5 | . . . 2 . . . . . 2 2 1 5 3 . . . . 1 3 . 2 2 1 . Low Security (%) 61 | 100 100 100 35 100 . . . 100 81 . 78 60 . . . . . 48 4 . 67 . 91 100 Level 1 18 | . . . 59 . . . . . 7 59 22 1 . . . . . 51 22 . 4 89 8 . Level 2 11 | . . . 4 . . . . . 10 40 . 1 59 . . . . . 27 . 27 10 . . Level 3 7 | . . . . . . . . . . . . 8 40 . . . . . 46 . . . . . Level 4 1 | . . . . . . . . . . . . 25 . . . . . . . . . . . . Level 5 . | . . . . . . . . . . . . 1 . . . . . . . . . . . . High Security . | . . . . . . . . . . . . . . . . . . . . . . . . . Max Security . | . . . . . . . . . . . . . . . . . . . . . . . . . Peak Influence 1686 | 10 146 111 425 105 . . . 133 441 465 265 1686 842 . . . . 337 870 . 649 582 306 112 Initial 842 | . . 26 1 105 . . . 63 44 235 154 16 842 . . . . 22 154 . . 300 306 106 Average 234 | 1 58 31 233 57 . . . 34 133 379 155 532 679 . . . . 186 596 . 218 351 107 50 Influence Increases 11909 | 25 525 210 1117 . . . 220 396 943 370 291 2123 519 50 5 10 305 497 1482 . 1277 548 560 436 Destroy 0b10 Robot/C 5460 | . 300 160 600 . . . 140 220 520 160 80 680 220 20 . . 240 180 960 . 680 80 200 20 Destroy 0b10 Robot/NC 560 | 25 15 5 95 . . . . 45 25 10 40 60 35 . 5 10 . 35 30 . 70 . 20 35 Destroy Leader 1028 | . 64 30 184 . . . 20 52 62 . . 112 68 . . . 20 56 166 . 154 20 20 . Allied During Kill 1353 | . . . . . . . . . 253 170 120 765 9 . . . . . 6 . 30 . . . Successful Hack 249 | . 22 . 15 . . . . 23 35 . . 14 39 . . . . 9 32 . 24 16 20 . Select Force Hacks 30 | . 30 . . . . . . . . . . . . . . . . . . . . . . . Disable Machine 675 | . 60 15 75 . . . . 30 15 . 45 150 45 . . . . 45 75 . 15 15 60 30 Anti-Garrison Action 150 | . . . . . . . . . . . . 150 . . . . . . . . . . . . Destroy Structure 1159 | . 4 . 73 . . . . 26 33 30 6 162 88 . . . . 112 198 . 94 132 135 66 Partial Spotted 60 | . . . . . . . . . . . . . . . . . . 15 . . . . 15 30 Lose Combat Pursuer 1185 | . 30 . 75 . . . 60 . . . . 30 15 30 . . 45 45 15 . 210 285 90 255 Influence Decreases 11847 | 25 457 273 852 265 5 . 120 404 614 406 629 449 1489 485 251 80 269 216 933 866 743 538 926 552 Entered New Map 3625 | . . 42 4 165 5 . . 37 48 186 231 31 879 279 61 70 . 14 163 866 . 234 238 72 Time Decay 5998 | 25 457 221 528 100 . . 90 362 483 160 318 318 310 206 190 10 249 182 550 . 423 214 252 350 Lost Part 905 | . . 10 20 . . . 30 5 20 . . . . . . . 20 20 170 . 240 90 150 130 Lost Ally 433 | . . . . . . . . . 63 60 80 100 . . . . . . 50 . 80 . . . Purge Threat 886 | . . . 300 . . . . . . . . . 300 . . . . . . . . . 286 . Squads Dispatched 63 | . 2 . 3 . . . . 4 4 . . 8 4 . . . . 3 10 . 11 4 6 4 Investigation 7 | . 1 . 1 . . . . . 2 . . 1 . . . . . . . . 1 . 1 . Extermination 16 | . . . . . . . . 2 . . . . 1 . . . . . 4 . 2 2 2 3 Reinforcement 25 | . 1 . 2 . . . . . 2 . . 3 2 . . . . 3 2 . 4 2 3 1 Assault 10 | . . . . . . . . 2 . . . 3 1 . . . . . 4 . . . . . Garrison 5 | . . . . . . . . . . . . 1 . . . . . . . . 4 . . . Intercept . | . . . . . . . . . . . . . . . . . . . . . . . . . Searches Triggered . | . . . . . . . . . . . . . . . . . . . . . . . . . Construction Impeded 8 | . . . . . . . . . 1 . . 2 1 . . . . 2 . . 1 . 1 . Haulers Reinforced 3 | . . . . . . . . . . . . . 1 . . . . 1 . . . 1 . . Active Scanning Responses . | . . . . . . . . . . . . . . . . . . . . . . . . . Cargo Convoy Interrupts 2 | . . . . . . . . 1 . . . . . . . . . . . . 1 . . . Stealth | -11 -10 -10 -9 -9 -7 -7 -6 -6 -6 -6 -6 -6 -5 -5 -5 -5 -4 -4 -4 -4 -3 -2 -2 -1 --------- Run | Yrd Mat Min Mat Min Zio Dee Pro Fac Ext Cet Arc Hub Fac Upp Upp Zhi Pro Fac Arm Lab Res Res Qua Acc Distress Signals 31 | . 6 . 2 . . . . 1 2 2 . 3 2 . . . . 1 2 . 3 2 1 4 Communications Jammed 50 | . . . . . . . . . . . . . . . . . . . 10 . 40 . . . Distress Signals 50 | . . . . . . . . . . . . . . . . . . . 10 . 40 . . . Times Spotted 495 | . 31 8 42 . . 8 15 16 31 8 11 27 17 3 . . 15 20 71 . 69 27 24 52 Peak Tracking Total 18 | . 5 3 6 . . 5 9 7 4 5 2 5 7 2 . . 5 7 9 . 17 18 6 10 Tactical Retreats 54 | . 2 . 4 . . . 3 . . . . 2 1 1 . . 3 3 1 . 8 5 3 18 ECM-based Alert Blocks 13 | . . . . . . . . . . . . . . . . . . . . . . . . 13 Traps | -11 -10 -10 -9 -9 -7 -7 -6 -6 -6 -6 -6 -6 -5 -5 -5 -5 -4 -4 -4 -4 -3 -2 -2 -1 ------- Run | Yrd Mat Min Mat Min Zio Dee Pro Fac Ext Cet Arc Hub Fac Upp Upp Zhi Pro Fac Arm Lab Res Res Qua Acc Traps Triggered 22 | . 1 . . . . . . 2 4 . . 4 2 . . . . . 4 . 5 . . . Indirectly 4 | . . . . . . . . . . . . 4 . . . . . . . . . . . . Trap Hack Attempts . | . . . . . . . . . . . . . . . . . . . . . . . . . Triggered . | . . . . . . . . . . . . . . . . . . . . . . . . . Disarmed . | . . . . . . . . . . . . . . . . . . . . . . . . . Reprogrammed . | . . . . . . . . . . . . . . . . . . . . . . . . . Reused . | . . . . . . . . . . . . . . . . . . . . . . . . . Traps Extracted . | . . . . . . . . . . . . . . . . . . . . . . . . . Installed . | . . . . . . . . . . . . . . . . . . . . . . . . . Triggered . | . . . . . . . . . . . . . . . . . . . . . . . . . Machines | -11 -10 -10 -9 -9 -7 -7 -6 -6 -6 -6 -6 -6 -5 -5 -5 -5 -4 -4 -4 -4 -3 -2 -2 -1 ---------- Run | Yrd Mat Min Mat Min Zio Dee Pro Fac Ext Cet Arc Hub Fac Upp Upp Zhi Pro Fac Arm Lab Res Res Qua Acc Machines Disabled 50 | . 4 1 5 . . . . 2 3 . 3 11 3 . . . . 4 5 1 1 1 4 2 Max in Single Turn 2 | . 1 1 2 . . . . 1 1 . 1 2 1 . . . . 2 1 1 1 1 1 1 Garrison Access 2 | . . . . . . . . 1 . . . 1 . . . . . . . . . . . . Network Hub 1 | . . . . . . . . . . . . 1 . . . . . . . . . . . . Machines Repaired . | . . . . . . . . . . . . . . . . . . . . . . . . . Machines Dismantled . | . . . . . . . . . . . . . . . . . . . . . . . . . Machines Sabotaged . | . . . . . . . . . . . . . . . . . . . . . . . . . Overloaded Fab Kills . | . . . . . . . . . . . . . . . . . . . . . . . . . Hacking | -11 -10 -10 -9 -9 -7 -7 -6 -6 -6 -6 -6 -6 -5 -5 -5 -5 -4 -4 -4 -4 -3 -2 -2 -1 --------- Run | Yrd Mat Min Mat Min Zio Dee Pro Fac Ext Cet Arc Hub Fac Upp Upp Zhi Pro Fac Arm Lab Res Res Qua Acc Machines Accessed 90 | . 9 1 14 . . . . 10 9 . . 6 6 1 . 4 . 4 7 1 5 2 6 5 Terminals 61 | . 7 . 9 . . . . 5 9 . . 5 5 . . . . 3 5 . 3 2 5 3 Fabricators 2 | . . . . . . . . . . . . . . . . . . . 2 . . . . . Repair Stations 3 | . . . 1 . . . . 2 . . . . . . . . . . . . . . . . Recycling Units 9 | . 2 . 2 . . . . 1 . . . . 1 . . . . 1 . . 1 . . 1 Scanalyzers 5 | . . . 2 . . . . 2 . . . . . . . . . . . . . . 1 . Garrison Access 3 | . . . . . . . . . . . . 1 . . . . . . . . 1 . . 1 Total Hacks 231 | . 17 1 34 . . . . 19 19 . . 16 28 1 . 17 . 14 19 1 12 5 21 7 Successful 121 | . 10 1 22 . . . . 9 7 . . 4 13 1 . 17 . 12 11 1 2 2 9 . Failed 108 | . 7 . 11 . . . . 10 12 . . 12 15 . . . . 2 8 . 10 3 11 7 Catastrophic 34 | . 3 . 3 . . . . 1 4 . . 3 5 . . . . . 2 . 2 2 5 4 Database Lockouts 2 | . . . 1 . . . . . . . . . . . . . . . . . . . 1 . Manual 119 | . 15 . 17 . 6 . . 8 4 1 . 11 19 . . . . 6 3 . 9 3 15 2 Terminals 166 | . 14 . 24 . . . . 8 19 . . 14 26 . . . . 11 13 . 8 5 19 5 Fabricators 6 | . . . . . . . . . . . . . . . . . . . 6 . . . . . Repair Stations 5 | . . . 2 . . . . 3 . . . . . . . . . . . . . . . . Recycling Units 16 | . 3 . 4 . . . . 2 . . . . 2 . . . . 3 . . 1 . . 1 Scanalyzers 12 | . . . 4 . . . . 6 . . . . . . . . . . . . . . 2 . Garrison Access 6 | . . . . . . . . . . . . 2 . . . . . . . . 3 . . 1 Terminal Hacks 71 | . 4 1 9 . . . . 2 6 . . 3 8 1 . 17 . 6 4 1 . 2 7 . Record 6 | . . . . . . . . . . . . . . . . 5 . . . 1 . . . . Part Schematic 6 | . . . . . . . . 1 . . . . 1 . . 4 . . . . . . . . Robot Analysis 6 | . 2 . . . . . . . . . . . . . . 4 . . . . . . . . Prototype ID Bank 7 | . . . 2 . . . . . . . . 1 . . . 4 . . . . . . . . Open Door 10 | . . 1 . . . . . . 6 . . . . 1 . . . . 2 . . . . . Open DSF 1 | . . . . . . . . . . . . . . . . . . 1 . . . . . . Level Access Points 1 | . . . . . . . . . . . . . . . . . . . . . . . 1 . Branch Access Points 3 | . . . . . . . . 1 . . . . 1 . . . . . . . . 1 . . Terminal Index 2 | . . . . . . . . . . . . . 1 . . . . . 1 . . . . . Repair Station Index 1 | . . . 1 . . . . . . . . . . . . . . . . . . . . . Alert Level 2 | . . . . . . . . . . . . . 1 . . . . 1 . . . . . . Unreport Threat 6 | . . . 2 . . . . . . . . . 2 . . . . . . . . . 2 . Locate Traps 10 | . 2 . 3 . . . . . . . . 1 1 . . . . 1 1 . . . 1 . Maintenance Status 2 | . . . . . . . . . . . . . . . . . . 1 . . . 1 . . Hauler Manifests 1 | . . . . . . . . . . . . . . . . . . . . . . . 1 . Registered Components 1 | . . . . . . . . . . . . . . . . . . . . . . . 1 . Zone Layout 6 | . . . 1 . . . . . . . . 1 1 . . . . 2 . . . . 1 . Fabricator Hacks 6 | . . . . . . . . . . . . . . . . . . . 6 . . . . . Load Schematic 3 | . . . . . . . . . . . . . . . . . . . 3 . . . . . Build 3 | . . . . . . . . . . . . . . . . . . . 3 . . . . . Repair Station Hacks 4 | . . . 2 . . . . 2 . . . . . . . . . . . . . . . . Scan Component 2 | . . . 1 . . . . 1 . . . . . . . . . . . . . . . . Repair 2 | . . . 1 . . . . 1 . . . . . . . . . . . . . . . . Recycling Unit Hacks 3 | . 1 . 1 . . . . . . . . . . . . . . 1 . . . . . . Retrieve Components 3 | . 1 . 1 . . . . . . . . . . . . . . 1 . . . . . . Scanalyzer 8 | . . . 3 . . . . 4 . . . . . . . . . . . . . . 1 . Insert Component 1 | . . . 1 . . . . . . . . . . . . . . . . . . . . . Analyze 1 | . . . 1 . . . . . . . . . . . . . . . . . . . . . Retrieve Study 6 | . . . 1 . . . . 4 . . . . . . . . . . . . . . 1 . Garrison Access Hacks . | . . . . . . . . . . . . . . . . . . . . . . . . . Unauthorized Hacks 29 | . 5 . 7 . . . . 1 1 . . 1 5 . . . . 5 1 . 2 . 1 . Terminals 23 | . 4 . 5 . . . . 1 1 . . 1 5 . . . . 3 1 . 1 . 1 . Track 5 | . . . 2 . . . . . 1 . . . 1 . . . . 1 . . . . . . Assimilate 1 | . . . . . . . . . . . . . . . . . . . . . . . 1 . Botnet 12 | . 3 . 2 . . . . 1 . . . 1 2 . . . . 1 1 . 1 . . . Disrupt 1 | . . . 1 . . . . . . . . . . . . . . . . . . . . . Operators 4 | . 1 . . . . . . . . . . . 2 . . . . 1 . . . . . . Fabricators . | . . . . . . . . . . . . . . . . . . . . . . . . . Repair Stations . | . . . . . . . . . . . . . . . . . . . . . . . . . Recycling Units 6 | . 1 . 2 . . . . . . . . . . . . . . 2 . . 1 . . . Reject 2 | . . . . . . . . . . . . . . . . . . 1 . . 1 . . . Recyclers 2 | . . . 1 . . . . . . . . . . . . . . 1 . . . . . . Mask 1 | . . . 1 . . . . . . . . . . . . . . . . . . . . . Tunnel 1 | . 1 . . . . . . . . . . . . . . . . . . . . . . . Scanalyzers . | . . . . . . . . . . . . . . . . . . . . . . . . . Garrison Access . | . . . . . . . . . . . . . . . . . . . . . . . . . Data Cores Recovered . | . . . . . . . . . . . . . . . . . . . . . . . . . Used . | . . . . . . . . . . . . . . . . . . . . . . . . . Hacking Detections 72 | . 8 . 12 . . . . 9 8 . . 6 6 . . . . 3 3 . 5 2 5 5 Full Trace Events 6 | . . . 1 . . . . . 2 . . 1 . . . . . . . . 1 . 1 . Feedback Events 1 | . . . . . . . . . . . . . . . . . . . . . 1 . . . Corruption 1 | . . . . . . . . . . . . . . . . . . . . . 1 . . . Feedback Blocked . | . . . . . . . . . . . . . . . . . . . . . . . . . Robot Schematics Acquired 5 | . . . . . 4 . . . . . . . . . . . . . . . . . 1 . Robots Built 1 | . . . . . . . . . . . . . . . . . . . 1 . . . . . Authchips 1 | . . . . . . . . . . . . . . . . . . . 1 . . . . . Time 74 | . . . . . . . . . . . . . . . . . . . 74 . . . . . Total Robot Build Rating 9 | . . . . . . . . . . . . . . . . . . . 9 . . . . . Part Schematics Acquired 20 | . . . 1 . 13 . . 1 . . . . 1 . . 4 . . . . . . . . Parts Built 2 | . . . . . . . . . . . . . . . . . . . 2 . . . . . Authchips 2 | . . . . . . . . . . . . . . . . . . . 2 . . . . . Time 124 | . . . . . . . . . . . . . . . . . . . 124 . . . . . Total Part Build Rating 14 | . . . . . . . . . . . . . . . . . . . 14 . . . . . Part Studies Acquired 6 | . . . 1 . . . . 4 . . . . . . . . . . . . . . 1 . Parts Repaired 2 | . . . 1 . . . . 1 . . . . . . . . . . . . . . . . Time 70 | . . . 32 . . . . 38 . . . . . . . . . . . . . . . . Parts Recycled . | . . . . . . . . . . . . . . . . . . . . . . . . . Recycled Matter . | . . . . . . . . . . . . . . . . . . . . . . . . . Retrieved Matter . | . . . . . . . . . . . . . . . . . . . . . . . . . Retrieved Components 10 | . . . 10 . . . . . . . . . . . . . . . . . . . . . Parts Scanalyzed 1 | . . . 1 . . . . . . . . . . . . . . . . . . . . . Part Schematics Acquired 1 | . . . 1 . . . . . . . . . . . . . . . . . . . . . Parts Damaged . | . . . . . . . . . . . . . . . . . . . . . . . . . Bothacking | -11 -10 -10 -9 -9 -7 -7 -6 -6 -6 -6 -6 -6 -5 -5 -5 -5 -4 -4 -4 -4 -3 -2 -2 -1 ------------ Run | Yrd Mat Min Mat Min Zio Dee Pro Fac Ext Cet Arc Hub Fac Upp Upp Zhi Pro Fac Arm Lab Res Res Qua Acc Used RIF Installer . | . . . . . . . . . . . . . . . . . . . . . . . . . Robots Hacked 4 | . . . . . . . . . . . 4 . . . . . . . . . . . . . Non-combat . | . . . . . . . . . . . . . . . . . . . . . . . . . Combat 4 | . . . . . . . . . . . 4 . . . . . . . . . . . . . Robot Hacks Applied 4 | . . . . . . . . . . . 4 . . . . . . . . . . . . . parse_system 4 | . . . . . . . . . . . 4 . . . . . . . . . . . . . Relay Couplers Released 1 | . . . . . . . . . . . . 1 . . . . . . . . . . . . Machine Destruction 1 | . . . . . . . . . . . . 1 . . . . . . . . . . . . Fabnet Peak Effective % . | . . . . . . . . . . . . . . . . . . . . . . . . . Robots Rewired 10 | . . . . . . . . . 10 . . . . . . . . . . . . . . . Allies Hacked . | . . . . . . . . . . . . . . . . . . . . . . . . . Hacks Repelled . | . . . . . . . . . . . . . . . . . . . . . . . . . Allies | -11 -10 -10 -9 -9 -7 -7 -6 -6 -6 -6 -6 -6 -5 -5 -5 -5 -4 -4 -4 -4 -3 -2 -2 -1 -------- Run | Yrd Mat Min Mat Min Zio Dee Pro Fac Ext Cet Arc Hub Fac Upp Upp Zhi Pro Fac Arm Lab Res Res Qua Acc Total Allies 36 | . . . . . 7 . . . 20 5 . 2 . . . . . . 1 . . . 1 . Largest Group 13 | . . . . . 7 4 . . 12 13 13 8 1 . . . . . 1 . . . 1 . Highest-Rated Group 767 | . . . . . 225 112 . . 484 767 710 582 96 . . . . . 67 . . . 10 . Highest-Rated Ally 159 | . . . . . 40 39 . . 159 159 96 96 96 . . . . . 67 . . . 10 . Total Orders 13 | . . . . . . . . . 2 . 2 3 . . . . . . 3 . 3 . . . STAY 4 | . . . . . . . . . 1 . 1 1 . . . . . . 1 . . . . . FOLLOW 4 | . . . . . . . . . 1 . 1 1 . . . . . . 1 . . . . . GUARD 1 | . . . . . . . . . . . . 1 . . . . . . . . . . . . EXPLORE 1 | . . . . . . . . . . . . . . . . . . . 1 . . . . . RETURN 3 | . . . . . . . . . . . . . . . . . . . . . 3 . . . Ally Attacks 401 | . . . . . . 2 . . 125 31 24 128 . . . . . . 3 . 88 . . . Total Damage 11062 | . . . . . . 72 . . 2627 711 585 4010 . . . . . . 1014 . 2043 . . . Kills 67 | . . . . . . . . . 15 4 1 32 . . . . . . 3 . 12 . . . Allies Corrupted 1 | . . . . . . . . . . . . 1 . . . . . . . . . . . . Allies Melted 2 | . . . . . . . . . 1 . . 1 . . . . . . . . . . . . Intel | -11 -10 -10 -9 -9 -7 -7 -6 -6 -6 -6 -6 -6 -5 -5 -5 -5 -4 -4 -4 -4 -3 -2 -2 -1 ------- Run | Yrd Mat Min Mat Min Zio Dee Pro Fac Ext Cet Arc Hub Fac Upp Upp Zhi Pro Fac Arm Lab Res Res Qua Acc Active Infowar (turns) 14152 | 47 454 745 1064 205 2098 182 212 377 468 334 677 712 455 427 384 230 281 256 1560 . 1236 298 551 899 Optics 2733 | . . . . . . . . . . . . . . . . . . 256 1519 . . . 59 899 Sensors 1961 | . . . 710 . . . . . . . . . . . . . . . . . . 184 532 535 Terrain 4684 | . . . . . . 3 . 377 468 334 677 712 455 427 384 230 281 . . . . . 242 94 Structural 413 | . . . . . . . . . . . . . . . . . . . . . . . 236 177 Seismic 4820 | 47 454 745 354 205 2098 179 212 . . . . . . . . . . . . . . . . 526 Machine Analysis 1282 | . . . . . . . . . . . . . . . . . . . . . . 167 538 577 Jamming 1321 | . . . . . . . . . . . . . . . . . . . 85 . 1236 . . . ECM 283 | . . . . . . . . . . . . . . . . . . . . . . . . 283 Robot Analysis Total 6 | . 2 . . . . . . . . . . . . . . 4 . . . . . . . . Derelict Logs Recovered 7 | . . 1 . 1 1 . . . . . . . . 1 1 . 2 . . . . . . . Drone Launches 17 | . . . . . . . . . . . . . . . . . . . 8 . 9 . . . Drone Recoveries 7 | . . . . . . . . . . . . . . . . . . . 2 . 5 . . . Exploration | -11 -10 -10 -9 -9 -7 -7 -6 -6 -6 -6 -6 -6 -5 -5 -5 -5 -4 -4 -4 -4 -3 -2 -2 -1 ------------- Run | Yrd Mat Min Mat Min Zio Dee Pro Fac Ext Cet Arc Hub Fac Upp Upp Zhi Pro Fac Arm Lab Res Res Qua Acc Turns Passed 20876 | 124 1371 797 1928 207 2139 1462 255 1261 1283 334 700 712 687 430 384 230 659 397 1591 665 1313 442 606 899 Spaces Moved 13271 | 38 757 461 943 123 1312 994 203 842 785 202 307 388 426 323 297 160 422 218 749 296 851 432 475 1267 Core 569 | . . . . . . . . . . . . . . . . . . . . . 132 189 97 151 Treads 3010 | . 218 461 517 123 1312 365 . . . . . . . . . . . . 14 . . . . . Legs 6939 | 38 383 . . . . 629 203 842 785 202 307 388 426 323 297 160 232 . 622 296 675 3 128 . Wheels 1245 | . 156 . 426 . . . . . . . . . . . . . 190 218 113 . . . 57 85 Hover 1106 | . . . . . . . . . . . . . . . . . . . . . 4 . 193 909 Flight 402 | . . . . . . . . . . . . . . . . . . . . . 40 240 . 122 Fastest Speed 32 | 120 115 160 130 160 160 110 116 103 105 108 120 120 120 120 120 120 120 115 115 120 32 34 50 40 Average Speed 119 | 120 143 160 148 160 160 133 116 111 107 110 120 120 120 120 120 120 133 119 122 122 108 73 80 54 Slowest Speed 470 | 120 190 160 200 160 160 210 116 122 111 190 120 120 190 120 120 120 470 145 260 124 250 200 260 250 Overloaded Moves . | . . . . . . . . . . . . . . . . . . . . . . . . . Propulsion Burnouts . | . . . . . . . . . . . . . . . . . . . . . . . . . Robots Hopped 3 | . . . . . . . . . . . . . . . . . . . . . 2 1 . . Potential Cave-ins . | . . . . . . . . . . . . . . . . . . . . . . . . . Cave-ins Triggered . | . . . . . . . . . . . . . . . . . . . . . . . . . Teleports 2 | . . . . . . . . . . . . . . . . . . . 1 . 1 . . . Exploration Rate (%) 51 | 3 97 96 88 12 88 70 49 23 83 56 87 48 16 54 40 60 59 10 33 94 26 13 47 35 Regions Visited 24 Branch Regions 16 Pre-discovered Areas 7 | . 1 . . 1 2 . . . . . . . . . . 3 . . . . . . . . Known Exits Taken 7 | . . . . . . . . 1 . . . 1 1 . 1 . . 1 . . . 1 1 . Unknown Exits Taken 17 | 1 1 1 1 1 1 1 1 . 1 1 1 . . 1 . 1 1 . 1 1 1 . . . Scrap Searched 7 | . . 1 . . 2 . . . . . . . . 1 1 . 2 . . . . . . . Spaces Dug 149 | . . . 39 . . . . 17 2 . . 10 11 . . . . 4 1 . 36 . 10 19 Terrain Destroyed 934 | . . . 73 . . 58 32 25 35 22 7 213 50 13 3 . 66 63 96 . 49 42 63 24 Melee 42 | . . . 11 . . . . 15 2 . . . 3 . . . . 3 . . . . 1 7 Projectile 248 | . . . 6 . . 2 1 8 33 . 7 38 30 13 3 . 5 18 21 . 25 . 21 17 AOE 633 | . . . 56 . . 56 31 2 . 22 . 175 17 . . . 61 42 67 . 22 42 40 . Terrain Rammed . | . . . . . . . . . . . . . . . . . . . . . . . . . Walls Destroyed . | . . . . . . . . . . . . . . . . . . . . . . . . . Machines Disabled . | . . . . . . . . . . . . . . . . . . . . . . . . . Actions | -11 -10 -10 -9 -9 -7 -7 -6 -6 -6 -6 -6 -6 -5 -5 -5 -5 -4 -4 -4 -4 -3 -2 -2 -1 --------- Run | Yrd Mat Min Mat Min Zio Dee Pro Fac Ext Cet Arc Hub Fac Upp Upp Zhi Pro Fac Arm Lab Res Res Qua Acc Total 16782 | 82 939 496 1310 128 1352 1102 215 1042 1122 296 588 556 522 347 315 190 489 300 1198 566 1062 528 624 1413 Wait 1462 | 22 68 10 138 . 15 8 3 33 156 35 213 106 25 11 . . 34 31 156 228 60 41 21 48 Move 13241 | 37 756 460 942 122 1311 993 202 841 784 201 306 387 425 322 296 159 421 217 748 295 846 429 474 1267 Hop 3 | . . . . . . . . . . . . . . . . . . . . . 2 1 . . Pick Up 188 | 3 19 4 26 . 8 16 . 26 4 8 3 1 4 1 2 2 2 3 30 5 8 4 3 6 Fast Attach 222 | 1 4 . 6 . 2 16 . 19 5 5 11 3 7 . 1 10 4 4 32 4 15 13 37 23 Attach 87 | . 1 1 4 . . 6 2 10 1 3 4 . 3 . 1 1 1 3 15 4 9 4 5 9 Detach 42 | . . . . . . 2 . 5 . 2 1 . . . 1 1 1 2 6 . 4 5 7 5 Swap 268 | 1 20 5 60 2 5 11 5 18 16 8 4 7 18 5 . . 8 10 30 5 26 . 4 . Drop 298 | 1 17 3 40 . 10 32 . 27 6 16 13 6 2 1 3 11 4 5 50 5 9 7 17 13 Fire 679 | 17 53 13 82 4 . 8 3 43 29 10 6 39 32 7 11 . 12 21 109 2 76 24 55 23 Melee 148 | . . . 11 . 1 10 . 20 13 8 27 . 6 . . 6 1 4 1 18 3 . 1 18 Ram 1 | . . . . . . . . . . . . . . . . . . . . . . . . 1 Kick 20 | . 1 . . . . . . . 7 . . 7 . . . . 1 . . . 4 . . . Crush 1 | . . . 1 . . . . . . . . . . . . . . . . . . . . . Escape Stasis 29 | . . . . . . . . . 13 . . . . . . . . . 16 . . . . . Rewire 90 | . . . . . . . . . 88 . . . . . . . . . 2 . . . . . Trap . | . . . . . . . . . . . . . . . . . . . . . . . . . Miscellaneous 3 | . . . . . . . . . . . . . . . . . . . 3 . . . . . Route ------- -11/Scrapyard -10/Materials (discovered 6 exits: *Mat x3 / *Min x2 / [*Sub]) -10/Mines (discovered 2 exits: *Mat x2) -9/Materials (discovered 3 exits: [*Mat] / [*Min] / [*Sto]) -9/Mines -7/Zion (discovered 2 exits: [*Dee] / [*Pro]) -7/Deep Caves -6/Proximity Caves -6/Factory (discovered 5 exits: Fac / Low x2 / *Ext x2) -6/Extension (discovered 2 exits: *Fac / *Cet) -6/Cetus (discovered 2 exits: *Fac / [*Arc]) -6/Archives (discovered 3 exits: *Fac / *Hub x2) -6/Hub_04(d) -5/Factory (discovered 2 exits: *Upp x2) -5/Upper Caves -5/Upper Caves -5/Zhirov -4/Proximity Caves -4/Factory (discovered 2 exits: [*Upp] / *Arm) -4/Armory -4/Lab -3/Research -2/Research (discovered 2 exits: *Qua x2) -2/Quarantine -1/Access History --------- Turn | Location | Event 21 | -11/Scrapyard | Discovered new exit (range 1) 125 | -11/Scrapyard | Entered Materials 248 | -10/Materials | Discovered new exit (range 13) 327 | -10/Materials | Build established: Mutant 508 | -10/Materials | Discovered new exit (range 5) 775 | -10/Materials | Discovered new exit (range 15) 808 | -10/Materials | Discovered new exit (range 10) 985 | -10/Materials | Discovered new exit (range 10) 1273 | -10/Materials | Discovered new exit (range 11) 1496 | -10/Materials | Entered Mines 1592 | -10/Mines | Discovered new exit (range 5) 1863 | -10/Mines | Learned Materials machine intel 1949 | -10/Mines | Found the Drone Emporium 1993 | -10/Mines | Discovered new exit (range 15) 2158 | -10/Mines | YI-UF0 nonchalantly dropped a Grenade Launcher on the ground 2293 | -10/Mines | Entered Materials 2293 | -9/Materials | Evolved 2 slots: Propulsion x1, Utility x1 2294 | -9/Materials | Loaded intel: 51 machine locations 2605 | -9/Materials | Discovered new exit (range 6) 2728 | -9/Materials | Central database locked down 2893 | -9/Materials | Repaired EMP Blaster 3176 | -9/Materials | Discovered new exit (range 3) 3469 | -9/Materials | Discovered new exit (range 16) 3829 | -9/Materials | Build established: Scavenger-Mutant 4221 | -9/Materials | Entered Mines 4222 | -9/Mines | A Derelict revealed a hidden shortcut to a safe place 4324 | -9/Mines | Learned location of Storage (-9) 4428 | -9/Mines | Entered Zion 4531 | -7/Zion | Discovered new exit (range 12) 4584 | -7/Zion | Given A8's code to call for help 4810 | -7/Zion | Gained Derelict followers 4998 | -7/Zion | Acquired unknown access codes intercepted by a Zionite 5035 | -7/Zion | Learned 4 Factory zone layouts 5161 | -7/Zion | Learned location of Quarantine (-2) 5199 | -7/Zion | Found CR-A16's Pointy Stick 5397 | -7/Zion | Received a hallucinogenic algorithm 5397 | -7/Zion | Ran a hallucination algorithm 5767 | -7/Zion | Opened final containment barrier to the Deep Caves 5916 | -7/Zion | Met Imprinter 5948 | -7/Zion | Imprinted 5950 | -7/Zion | Declared Zion's savior 6195 | -7/Zion | Found Prototype Special Weapon 6198 | -7/Zion | Found Prototype Special Weapon 6210 | -7/Zion | Identified RU-N14's Throwing Claymores (x2) 6228 | -7/Zion | Found RU-N14's Throwing Claymores 6241 | -7/Zion | Found RU-N14's Throwing Claymores 6550 | -7/Zion | Discovered new exit (range 3) 6550 | -7/Zion | Saw the warning signs outside the Deep Caves entrance 6567 | -7/Zion | Entered Deep Caves 6567 | -7/Deep Caves | Accompanied by 7 allies 6691 | -7/Deep Caves | Found Surveybot 24 Chip 6694 | -7/Deep Caves | Found Surveybot 24 Scanner 6909 | -7/Deep Caves | Attacked by Z-Imprinter 6927 | -7/Deep Caves | Destroyed Z-Imprinter 7098 | -7/Deep Caves | Z-Facility disabled 7164 | -7/Deep Caves | Found Prototype Protection 7164 | -7/Deep Caves | Identified Zio. Weapon Casing 7269 | -7/Deep Caves | Found Prototype Protection 7269 | -7/Deep Caves | Identified Zio. Heavy Carapace 7531 | -7/Deep Caves | Build established: Mutant 7610 | -7/Deep Caves | Discovered new exit (range 7) 8029 | -7/Deep Caves | Entered Proximity Caves 8111 | -6/Proximity Caves | Spotted B-75 Beast 8141 | -6/Proximity Caves | Core integrity fell below 50% 8266 | -6/Proximity Caves | Discovered new exit (range 15) 8284 | -6/Proximity Caves | Entered Factory 8284 | -6/Factory | Evolved 6 slots: Power x1, Propulsion x2, Utility x2, Weapon x1 8285 | -6/Factory | Identified exit to Factory 8944 | -6/Factory | Build established: Scavenger-Mutant 8990 | -6/Factory | Repaired Imp. Light Armor Plating 9105 | -6/Factory | Cargo convoy interrupted 9128 | -6/Factory | Identified exit to Lower Caves 9128 | -6/Factory | Identified exit to Extension 9281 | -6/Factory | Found Prototype Launcher 9281 | -6/Factory | Identified Mni. Smartbomb Launcher 9346 | -6/Factory | Found Prototype Device 9346 | -6/Factory | Identified Exp. EM Disruption Field 9391 | -6/Factory | Found Prototype Device 9391 | -6/Factory | Identified Exp. Thermal Defense Suite 9545 | -6/Factory | Entered Extension 9632 | -6/Extension | Build established: Tank 9853 | -6/Extension | Rescued a captive Derelict 9870 | -6/Extension | Rescued a captive Derelict 9871 | -6/Extension | Rescued a captive Derelict 10116 | -6/Extension | Build established: Scavenger-Tank 10342 | -6/Extension | Spotted B-75 Beast 10369 | -6/Extension | Spotted B-75 Beast 10390 | -6/Extension | Allies destroyed B-75 Beast 10405 | -6/Extension | Revealed the true nature of CR-A16's Pointy Stick 10406 | -6/Extension | Allies destroyed B-75 Beast 10422 | -6/Extension | Lost 4 allies 10556 | -6/Extension | Rescued A7 10614 | -6/Extension | Rescued a captive Derelict 10622 | -6/Extension | Rescued a captive Derelict 10676 | -6/Extension | Rescued a captive Derelict 10677 | -6/Extension | Rescued a captive Derelict 10735 | -6/Extension | Rescued a captive Derelict 10735 | -6/Extension | Rescued a captive Derelict 10770 | -6/Extension | Discovered new exit (range 17) 10772 | -6/Extension | Build established: Commander-Tank 10781 | -6/Extension | Discovered exit to Factory (range 10) 10828 | -6/Extension | Entered Cetus 10828 | -6/Cetus | Accompanied by 12 allies (A7) 10833 | -6/Cetus | Acquired a Cetus Manufacturing Module code from A7 10851 | -6/Cetus | Spotted Cetus Guard 10851 | -6/Cetus | Spotted Cetus Guard 10854 | -6/Cetus | Spotted Cetus Guard 10855 | -6/Cetus | Spotted Cetus Guard 10859 | -6/Cetus | Allies destroyed Cetus Guard 10862 | -6/Cetus | Destroyed Cetus Guard 10862 | -6/Cetus | Allies destroyed Cetus Guard 10864 | -6/Cetus | Allies destroyed Cetus Guard 10940 | -6/Cetus | Started Cetus Manufacturing Module 10959 | -6/Cetus | Discovered new exit (range 16) 10965 | -6/Cetus | Manufactured an Enhanced Grunt 10984 | -6/Cetus | Spotted Cetus Guard 10985 | -6/Cetus | Spotted Cetus Guard 10987 | -6/Cetus | Spotted Cetus Guard 10988 | -6/Cetus | Spotted Cetus Guard 10990 | -6/Cetus | Manufactured an Enhanced Grunt 10990 | -6/Cetus | Allies destroyed Cetus Guard 10993 | -6/Cetus | Destroyed Cetus Guard 10996 | -6/Cetus | Destroyed Cetus Guard 10999 | -6/Cetus | Destroyed Cetus Guard 11006 | -6/Cetus | Discovered exit to Factory (range 15) 11011 | -6/Cetus | Scared off Revision 17 11015 | -6/Cetus | Manufactured an Enhanced Grunt 11040 | -6/Cetus | Manufactured an Enhanced Grunt 11054 | -6/Cetus | Murdered A7 11065 | -6/Cetus | Manufactured an Enhanced Grunt 11068 | -6/Cetus | Extracted ID and sensor layout for unrecognized location from A7's data core 11074 | -6/Cetus | System corruption reached 10% 11162 | -6/Cetus | Entered Archives 11162 | -6/Archives | Accompanied by 13 allies 11225 | -6/Archives | Discovered new exit (range 15) 11235 | -6/Archives | Lost 4 allies 11507 | -6/Archives | Discovered new exit (range 14) 11542 | -6/Archives | Build established: Scavenger-Mutant 11571 | -6/Archives | Discovered exit to Factory (range 15) 11862 | -6/Archives | Entered Hub_04(d) 11862 | -6/Hub_04(d) | Accompanied by 8 allies 12051 | -6/Hub_04(d) | Build established: Scavenger-Tank 12306 | -6/Hub_04(d) | Garrison activated, responded to threat 12316 | -6/Hub_04(d) | Enhanced Grunt warped into view, answering call for help 12318 | -6/Hub_04(d) | Enhanced Grunt warped into view, answering call for help 12415 | -6/Hub_04(d) | Lost 6 allies 12472 | -6/Hub_04(d) | Discovered exit to Factory (range 9) 12562 | -6/Hub_04(d) | First assault squad dispatched 12564 | -6/Hub_04(d) | Network Hub disabled 12565 | -6/Hub_04(d) | Build established: Scavenger-Gunner 12574 | -6/Hub_04(d) | Entered Factory 12574 | -5/Factory | Accompanied by 1 ally 12574 | -5/Factory | Evolved 2 slots: Propulsion x1, Utility x1 12800 | -5/Factory | Identified exit to Upper Caves 12962 | -5/Factory | Build established: Scavenger-Tank 13174 | -5/Factory | First assault squad dispatched 13261 | -5/Factory | Entered Upper Caves 13296 | -5/Upper Caves | Acquired the password to a Derelict Tinkerer's latest research 13451 | -5/Upper Caves | Learned Factory terminal intel 13555 | -5/Upper Caves | Build established: Scavenger-Gunner 13656 | -5/Upper Caves | Discovered new exit (range 5) 13691 | -5/Upper Caves | Entered another Upper Caves area 13767 | -5/Upper Caves | Identified exit to Zhirov 14075 | -5/Upper Caves | Entered Zhirov 14077 | -5/Zhirov | Discovered new exit (range 3) 14099 | -5/Zhirov | Met Zhirov 14120 | -5/Zhirov | Learned location of Testing (-3) 14120 | -5/Zhirov | Learned location of Command (-1) 14131 | -5/Zhirov | Zhirov requested help retrieving the SGEMP Prototype 14151 | -5/Zhirov | Found Alien Artifact 14151 | -5/Zhirov | Identified Integrated Dissipator 14151 | -5/Zhirov | Installed Integrated Dissipator, increased core heat dissipation (+20) 14245 | -5/Zhirov | Found Alien Artifact 14305 | -5/Zhirov | Entered Proximity Caves 14548 | -4/Proximity Caves | Learned 4 Research zone layouts 14716 | -4/Proximity Caves | Spotted B-86 Titan 14750 | -4/Proximity Caves | Destroyed B-86 Titan 14899 | -4/Proximity Caves | Attracted the attention of an 0b10 checkpoint 14916 | -4/Proximity Caves | Discovered new exit (range 15) 14964 | -4/Proximity Caves | Entered Factory 14964 | -4/Factory | Evolved 2 slots: Utility x2 14965 | -4/Factory | Identified exit to Armory 14966 | -4/Factory | Loaded intel: 26 terminal locations 15028 | -4/Factory | Identified exit to DSF 15216 | -4/Factory | Discovered new exit (range 16) 15361 | -4/Factory | Entered Armory 15429 | -4/Armory | Lost 5 parts (2p1n2u) 15580 | -4/Armory | Destroyed 7 combat bots 15690 | -4/Armory | Lost 6 parts (1p2n3u) 15854 | -4/Armory | Spotted B-86 Titan 15881 | -4/Armory | Destroyed B-86 Titan 15896 | -4/Armory | Found Hvy. Reflective Plating 16111 | -4/Armory | First assault squad dispatched 16259 | -4/Armory | Destroyed 11 combat bots 16312 | -4/Armory | Lost 4 parts (1n1u2w) 16549 | -4/Armory | Fabricated Assault Drone Bay (x1) 16666 | -4/Armory | Fabricated D-83 Annihilator? 16736 | -4/Armory | Fabricated Assault Drone Bay (x1) 16915 | -4/Armory | System corruption reached 10% 16944 | -4/Armory | Spotted Armor Guard 16944 | -4/Armory | Spotted Armor Guard 16950 | -4/Armory | Identified Transdimensional Reconstructor 16950 | -4/Armory | Warped through subspace to slip node 16950 | -4/Armory | Discovered new exit (range 1) 16952 | -4/Armory | Entered Lab 16954 | -4/Lab | Discovered new exit (range 9) 16967 | -4/Lab | Hidden lab's door opened automatically 16967 | -4/Lab | Sensor layout match revealed 16968 | -4/Lab | Gained access to the hidden lab's interior 16973 | -4/Lab | Unable to decrypt terminal 16995 | -4/Lab | Found Transdimensional Reconstructor 17029 | -4/Lab | Found Integrated Dissipator 17029 | -4/Lab | Installed Integrated Dissipator, increased core heat dissipation (+20) 17095 | -4/Lab | Found Alien Artifact 17095 | -4/Lab | Identified Core Expander 17095 | -4/Lab | Installed Core Expander, added new Weapon slot 17216 | -4/Lab | Found Prototype Protection 17220 | -4/Lab | Found Prototype Hackware 17232 | -4/Lab | Identified Exp. Powered Armor 17264 | -4/Lab | Found Prototype Special Weapon 17267 | -4/Lab | Identified Gui. Remote Datajack 17617 | -4/Lab | Entered Research 17617 | -3/Research | Evolved 2 slots: Power x1, Utility x1 18093 | -3/Research | Identified Quantum Router 18204 | -3/Research | Warped through subspace 18381 | -3/Research | Found Prototype Processor 18381 | -3/Research | Identified Exp. Signal Interpreter 18405 | -3/Research | Build established: Hacker-Gunner 18422 | -3/Research | Spotted B-86 Titan 18477 | -3/Research | Destroyed B-86 Titan 18704 | -3/Research | Garrison activated, responded to threat 18750 | -3/Research | Cargo convoy interrupted 18753 | -3/Research | Spotted Executioner 18775 | -3/Research | System corruption reached 10% 18796 | -3/Research | Lost 4 allies 18813 | -3/Research | Lost 5 parts (1p2n1u1w) 18844 | -3/Research | Core integrity fell below 50% 18925 | -3/Research | Core integrity fell below 20% 18928 | -3/Research | Discovered new exit (range 8) 18930 | -3/Research | Entered another Research area 18930 | -2/Research | Evolved 2 slots: Propulsion x2 18950 | -2/Research | Identified exit to Quarantine 18958 | -2/Research | Lost 16 parts (1p9n3u3w) 19126 | -2/Research | Build established: Mutant 19354 | -2/Research | Lost 3 parts (2n1u) 19368 | -2/Research | Spotted B-90 Cyclops 19372 | -2/Research | Entered Quarantine 19399 | -2/Quarantine | Lost 3 parts (2n1u) 19423 | -2/Quarantine | Identified exit to Access 19637 | -2/Quarantine | Found Alien Energy Cannon 19637 | -2/Quarantine | Identified Core Cannon 19747 | -2/Quarantine | Lost 11 parts (2p4n1u4w) 19765 | -2/Quarantine | Scanned by Researcher 19935 | -2/Quarantine | Found Alien Slashing Weapon 19935 | -2/Quarantine | Identified Sigix Broadsword 19949 | -2/Quarantine | Central database locked down 19978 | -2/Quarantine | Entered Access 19978 | -1/Access | Evolved 2 slots: Utility x2 20139 | -1/Access | Spotted B-99 Colossus 20176 | -1/Access | Lost 5 parts (1p2n1u1w) 20449 | -1/Access | Build established: Infiltrator-Scout 20584 | -1/Access | Lost 6 parts (4n2u) 20750 | -1/Access | Core integrity fell below 50% 20780 | -1/Access | Core integrity fell below 20% 20830 | -1/Access | Lost 7 parts (1p3n3u) 20877 | -1/Access | Destroyed by S-43 Plague with Heavy Machine Gun Last Messages --------------- 20783_ Adv. Sensor Array destroyed. 20783_ Penetrated by Slug. 20784_ Slug penetrates K-01 Serf. 20784_ K-01 Serf destroyed. 20798_ Penetrated by Slug. 20799_ Adv. Heat Sink destroyed. 20799_ Penetrated by Slug. 20801_ Slug penetrates Wall. 20801_ Penetrated by Slug. 20804_ Connecting with Garrison Access... 20817_ System corrupted: Matter fused (-7). 20841_ Dropped Enh. Nova Cannon. 20841_ Acquired Enh. Nova Cannon. 20850_ R-10 Processor destroyed. 20857_ Acquired Com. Wheel. 20859_ Acquired 150 matter. 20861_ Acquired Med. Storage Unit. 20863_ Acquired Hpw. Tractor Beam. 20870_ K-01 Serf destroyed. 20874_ Destroyed Xenon Bombardment Thruster. Map ----- +----------------------------------------------------+ | | | | | | | | | | | | | | | | | | | ???????????????????????###??######??##???????????? | | ???????????????????? ##############?#???????????? | | ?????????????????? ?? #############?#?##?????????? | | #?###?????#?????? ##############?????????????? | | ##?########??? ########?########????????""? | | ? ? ##?####?#?##+###################### ??????""? | | + ? #####################? ? ?""""" | | ### ##### ###################?## ? ??""""" | | ### ##### ### ################ ?? ??""? | | ### ##### ! ################ ????""? | | ### #####+###### ########## # ?????? | | ##+##### # ### ########### ##### ??? | | + ### ###########+###########+##? | | ####### ### s s *+% # ? | | ####### ### ss#### # ? | | ################### ##s#### # ? | | ###### ######## ##@s # + | | ###### ### ##! # # | | + # # | | ##+###### ###### # ! " + | | # #### ## ###### # """ # | | # ######+#### ###### # """ # | | # ## # # # " # | | # ## + n # # | | # ## " # # # # | | # ##? """ ## #################"# | | # ## """ ## # ########## | | #] ## " ## + ########## | | # ## [ ## # "" #####?#### | | ####### ## #* "" ########## | | ####### ## # Y"] #######??# | | ################# # "" ########## | | ##?#?############ # "" ########## | | ###???#?????##### + ########## | | ##???????????#### # ########?# | | # ??"""""????##"" ###############??## | | # ??"""""????##"" ################### | | # ??"""""????##"" ##?????????#####?## | | # ??"""""????##T ####???????????#?## | | ????"""""? ?##"" ####??????????????# | | ????????? ##"" ##??????????????# | +----------------------------------------------------+ Best States ------------- Heat Dissipation 130 Energy Generation 63 Energy Capacity 1040 Matter Stores 461 Matter Capacity 800 Sight Range 22 Robot Scan Range 16 Terrain Scan Range 20 Terrain Scan Density 2010 ECM Strength 1 Jamming Range 16 Armor Coverage 1200 Resistance: TH 30 Core Shielding 30 Power Shielding 66 Propulsion Shielding 33 Weapon Shielding 100 Evasion (%) 82 Targeting Accuracy 12 Target Analysis 8 Core Analysis 6 Recoil Reduction 6 Offensive Hacking 14 Defensive Hacking 25 Authchip Count 1 Item Schematics ----------------- Hrd. Light Armor Plating | -9/Materials | Scanalyzed Imp. EM Pulse Cannon | -7/Zion | Archive Power Amplifier | -7/Zion | Archive Gravmag System | -7/Zion | Archive Imp. Target Analyzer | -7/Zion | Archive Imp. Thermal Shield | -7/Zion | Archive Kinecellerator | -7/Zion | Archive Lyr. Medium Armor Plating | -7/Zion | Archive Transmission Jammer | -7/Zion | Archive Adv. Sensor Array | -7/Zion | Archive EM Shield | -7/Zion | Archive Recalibrator | -7/Zion | Archive Core Analyzer | -7/Zion | Archive KE Penetrator | -7/Zion | Archive Angular Momentum Engine | -6/Factory | Hacked Imp. Transmission Jammer | -5/Factory | Hacked Assault Drone Bay | -5/Zhirov | Free Exp. Heat Sink | -5/Zhirov | Free Exp. Optical Array | -5/Zhirov | Free Imp. Arc Thrower | -5/Zhirov | Free Robot Schematics ------------------ A-02 Transporter | -7/Zion | Archive R-06 Scavenger | -7/Zion | Archive B-48 Gladiator | -7/Zion | Archive D-83 Annihilator | -7/Zion | Archive K-01 Serf | -2/Quarantine | Archive Fabricated ------------ Assault Drone Bay | x1 | -4/Armory | Authchip D-83 Annihilator | x1 | -4/Armory | Authchip Assault Drone Bay | x1 | -4/Armory | Authchip Repaired ---------- EMP Blaster | 11% | -9/Materials Imp. Light Armor Plating | 45% | -6/Factory Studied --------- Lgt. Treads | -9/Materials | Hacked Titanium Leg | -6/Factory | Hacked Imp. Deuterium Engine | -6/Factory | Hacked Lgt. Angular Momentum Engine | -6/Factory | Hacked Gatling Laser | -6/Factory | Hacked Biometal Leg | -2/Quarantine | Hacked Alien Tech Used ----------------- Integrated Dissipator Transdimensional Reconstructor Core Expander Core Cannon Sigix Broadsword Achievements -------------- All Kinds Of Bad News Anyone Home? Deadly Precision Fancy Inventory Ghost 'Em Hydra Infodabbler Jackpot Official Business Physics Protects Resistances Are Futile Tailor-made That Tickles The Robot, The Myth, The Legend Thread The Needle Around The Corner We Love MA Challenges ------------ None Game ------ Seed MissileProjectionSuite Manual? 0 Play Time 08:40:47 Cumulative 162.9 hours Start 2025.10.02 @ 11:47:48 End 2025.10.10 @ 11:53:12 Sessions 15 Manual Loads 0 Difficulty Rogue Special Mode None Game No. 70 Rogue 66 Adventurer 1 Explorer 3 Win Type - Total 4 Types 3/1/0/0/0/0/0/0/0/0 Lore% 62 Gallery% 66 Achievement% 41 Wizard Run 0 Options --------- Layout 2 ASCII 0 Keyboard 1 Movement Numpad Keybinds 0 Fullscreen 1 Font 32/SmallcapsGlow Map View 50x44 Zoom Use 0% Tactical HUD 1 Map Filters NONE Filters NONE Steam 1 RUN: 7c1b91c0-fc04-416e-9aff-cb655ecca21b